fUST/lending_fUST_20240115
["ID","MTS","AMOUNT","RATE_DAILY","PERIOD"]
[311656516,1705287046060,-500.0,0.00028493,2]
[311656517,1705287046069,-751.37,0.00028493,2]
[311656518,1705287046078,-500.0,0.00028493,2]
[311656519,1705287046087,-553.59,0.00028493,2]
[311656520,1705287046096,-10237.47,0.00028493,2]
[311656521,1705287046105,-263.87300385,0.00028493,2]
[311656522,1705287046114,-1040.7,0.00028493,2]
[311656523,1705287046123,-905.69,0.00028493,2]
[311656524,1705287046132,-500.0,0.00028493,2]
[311656525,1705287046142,-3647.41,0.00028493,2]
[311656526,1705287046152,-1956.23,0.00028493,2]
[311656527,1705287046161,-872.9,0.00028493,2]
[311656528,1705287046171,-500.0,0.00028493,2]
[311656529,1705287046182,-5498.47,0.00028493,2]
[311656530,1705287046192,-5618.65,0.00028493,2]
[311656531,1705287046202,-500.0,0.00028493,2]
[311656532,1705287046212,-17422.42,0.00028493,2]
[311656533,1705287046223,-500.0,0.00028493,2]
[311656534,1705287046233,-2878.01,0.00028493,2]
[311656535,1705287046242,-500.0,0.00028493,2]
[311656536,1705287046252,-1035.21,0.00028493,2]
[311656537,1705287046264,-1447.87,0.00028665,2]
[311656538,1705287046273,-540.84,0.00028666,2]
[311656539,1705287046282,-596.02,0.00028666,2]
[311656540,1705287046292,-500.0,0.00028666,2]
[311656541,1705287046301,-504.7,0.00028666,2]
[311656542,1705287046311,-500.0,0.00028666,2]
[311656543,1705287046320,-500.0,0.00028672,2]
[311656544,1705287046330,-500.0,0.00028672,2]
[311656545,1705287046340,-500.0,0.00028672,2]
[311656546,1705287046350,-500.0,0.00028672,2]
[311656547,1705287046359,-500.0,0.00028672,2]
[311656548,1705287046369,-500.0,0.00028672,2]
[311656549,1705287046379,-202.99278543,0.00028672,2]
[311656550,1705287046389,-500.0,0.00028672,2]
[311656551,1705287046399,-500.0,0.00028672,2]
[311656552,1705287046409,-1814.94,0.00028672,2]
[311656553,1705287046419,-500.0,0.00028672,2]
[311656554,1705287046429,-500.0,0.00028672,2]
[311656555,1705287046439,-500.0,0.00028672,2]
[311656556,1705287046449,-500.0,0.00028672,2]
[311656557,1705287046458,-733.15,0.00028672,2]
[311656558,1705287046467,-502.34542097,0.00028672,2]
[311656559,1705287046476,-500.0,0.00028672,2]
[311656560,1705287046488,-5000.0,0.00028679,5]
[311656561,1705287046497,-21907.01423695,0.00028679,3]
[311656562,1705287046506,-5000.0,0.00028679,5]
[311656563,1705287046515,-10341.15655492,0.00028679,3]
[311656564,1705287046523,-5000.0,0.00028679,5]
[311656565,1705287046533,-3051.75554055,0.00028679,3]
[311656566,1705287046543,-444.16,0.00028766,2]
[311656567,1705287046553,-534.48,0.00028767,2]
[311656568,1705287046562,-1828.62,0.00028767,2]
[311656569,1705287046573,-500.0,0.00028767,2]
[311656570,1705287046583,-528.07,0.00028767,2]
[311656571,1705287046593,-2033.21,0.00028767,2]
[311656572,1705287046602,-500.0,0.00028767,2]
[311656573,1705287046611,-1224.73,0.00028767,2]
[311656574,1705287046619,-500.0,0.00028767,2]
[311656575,1705287046629,-782.52,0.00028767,2]
[311656576,1705287046638,-938.27,0.00028767,2]
[311656577,1705287046647,-500.0,0.00028767,2]
[311656578,1705287046657,-500.0,0.00028767,2]
[311656579,1705287046667,-500.0,0.00028767,2]
[311656580,1705287046676,-500.0,0.00028767,2]
[311656581,1705287046685,-500.0,0.00028767,2]
[311656582,1705287046694,-1248.14,0.00028767,2]
[311656583,1705287046703,-500.0,0.00028767,2]
[311656584,1705287046712,-500.0,0.00028767,2]
[311656585,1705287046722,-500.0,0.00028767,2]
[311656586,1705287046731,-574.48,0.00028767,2]
[311656587,1705287046740,-500.0,0.00028767,2]
[311656588,1705287046749,-4486.62,0.00028767,2]
[311656589,1705287046759,-500.0,0.00028767,2]
[311656590,1705287046768,-502.67,0.00028767,2]
[311656591,1705287046777,-500.0,0.00028767,2]
[311656592,1705287046787,-756.73,0.00028767,2]
[311656593,1705287046797,-1008.65,0.00028767,2]
[311656594,1705287046806,-500.0,0.00028767,2]
[311656595,1705287046815,-751.37,0.00028767,2]
[311656596,1705287046825,-500.0,0.00028767,2]
[311656597,1705287046834,-155.0,0.00028767,2]
[311656598,1705287046843,-553.59,0.00028767,2]
[311656599,1705287046852,-10237.47,0.00028767,2]
[311656600,1705287046865,-1040.7,0.00028767,2]
[311656601,1705287046874,-905.69,0.00028767,2]
[311656602,1705287046884,-500.0,0.00028767,2]
[311656603,1705287046893,-3647.41,0.00028767,2]
[311656604,1705287046902,-1956.23,0.00028767,2]
[311656605,1705287046911,-872.9,0.00028767,2]
[311656606,1705287046920,-500.0,0.00028767,2]
[311656607,1705287046929,-5498.47,0.00028767,2]
[311656608,1705287046939,-5618.65,0.00028767,2]
[311656609,1705287046948,-500.0,0.00028767,2]
[311656610,1705287046957,-17422.42,0.00028767,2]
[311656611,1705287046966,-507.33605451,0.00028767,2]
[311656612,1705287046975,-2878.01,0.00028767,2]
[311656613,1705287046984,-500.0,0.00028767,2]
[311656614,1705287046993,-150.0,0.00028888,2]
[311656615,1705287047002,-250.0,0.00028888,2]
[311656616,1705287047011,-1447.87,0.00028939,2]
[311656617,1705287047020,-540.84,0.0002894,2]
[311656618,1705287047029,-596.02,0.0002894,2]
[311656619,1705287047038,-500.0,0.0002894,2]
[311656620,1705287047047,-504.7,0.0002894,2]
[311656621,1705287047056,-500.0,0.0002894,2]
[311656622,1705287047066,-500.0,0.00028946,2]
[311656623,1705287047075,-500.0,0.00028946,2]
[311656624,1705287047084,-500.0,0.00028946,2]
[311656625,1705287047093,-500.0,0.00028946,2]
[311656626,1705287047102,-500.0,0.00028946,2]
[311656627,1705287047111,-500.0,0.00028946,2]
[311656628,1705287047184,-500.0,0.00028946,2]
[311656629,1705287047194,-1814.94,0.00028946,2]
[311656630,1705287047203,-500.0,0.00028946,2]
[311656631,1705287047213,-500.0,0.00028946,2]
[311656632,1705287047223,-501.40255885,0.00028946,2]
[311656633,1705287047232,-733.15,0.00028946,2]
[311656634,1705287047241,-155.02015262,0.00029,2]
[311656635,1705287047250,-2316.63489669,0.00029,2]
[311656636,1705287047259,-500.0,0.00029,7]
[311656637,1705287047268,-500.0,0.00029,7]
[311656638,1705287047277,-500.0,0.00029,7]
[311656639,1705287047286,-522.24,0.00029,7]
[311656640,1705287047295,-238.525294,0.00029,2]
[311656641,1705287047304,-2046.884197,0.00029,2]
[311656642,1705287047313,-212.00277784,0.00029008,3]
[311656643,1705287047322,-6023.25,0.0002904,2]
[311656644,1705287047330,-6023.25,0.0002904,2]
[311656645,1705287047339,-6023.25,0.0002904,2]
[311656646,1705287047348,-6023.25,0.0002904,2]
[311656647,1705287047357,-6023.25,0.0002904,2]
[311656648,1705287047366,-6023.25,0.0002904,2]
[311656649,1705287047375,-6023.25,0.0002904,2]
[311656650,1705287047384,-6023.25,0.0002904,2]
[311656651,1705287047393,-6023.25,0.0002904,2]
[311656652,1705287047402,-6023.25,0.0002904,2]
[311656653,1705287047411,-534.48,0.00029041,2]
[311656654,1705287047420,-1828.62,0.00029041,2]
[311656655,1705287047429,-500.0,0.00029041,2]
[311656656,1705287047438,-528.07,0.00029041,2]
[311656657,1705287047447,-2033.21,0.00029041,2]
[311656658,1705287047456,-500.0,0.00029041,2]
[311656659,1705287047467,-1224.73,0.00029041,2]
[311656660,1705287047476,-500.0,0.00029041,2]
[311656661,1705287047485,-782.52,0.00029041,2]
[311656662,1705287047494,-938.27,0.00029041,2]
[311656663,1705287047503,-500.0,0.00029041,2]
[311656664,1705287047512,-500.0,0.00029041,2]
[311656665,1705287047521,-500.0,0.00029041,2]
[311656666,1705287047531,-500.0,0.00029041,2]
[311656667,1705287047540,-500.0,0.00029041,2]
[311656668,1705287047550,-1248.14,0.00029041,2]
[311656669,1705287047559,-500.0,0.00029041,2]
[311656670,1705287047569,-500.0,0.00029041,2]
[311656671,1705287047578,-500.0,0.00029041,2]
[311656672,1705287047587,-574.48,0.00029041,2]
[311656673,1705287047596,-500.0,0.00029041,2]
[311656674,1705287047606,-4486.62,0.00029041,2]
[311656675,1705287047616,-500.0,0.00029041,2]
[311656676,1705287047625,-502.67,0.00029041,2]
[311656677,1705287047634,-500.0,0.00029041,2]
[311656678,1705287047643,-756.73,0.00029041,2]
[311656679,1705287047653,-1008.65,0.00029041,2]
[311656680,1705287047662,-500.0,0.00029041,2]
[311656681,1705287047671,-751.37,0.00029041,2]
[311656682,1705287047680,-500.0,0.00029041,2]
[311656683,1705287047689,-553.59,0.00029041,2]
[311656684,1705287047698,-10237.47,0.00029041,2]
[311656685,1705287047707,-1040.7,0.00029041,2]
[311656686,1705287047716,-905.69,0.00029041,2]
[311656687,1705287047725,-500.0,0.00029041,2]
[311656688,1705287047734,-3647.41,0.00029041,2]
[311656689,1705287047744,-1956.23,0.00029041,2]
[311656690,1705287047753,-872.9,0.00029041,2]
[311656691,1705287047762,-500.0,0.00029041,2]
[311656692,1705287047771,-5498.47,0.00029041,2]
[311656693,1705287047780,-5618.65,0.00029041,2]
[311656694,1705287047789,-500.0,0.00029041,2]
[311656695,1705287047798,-17422.42,0.00029041,2]
[311656696,1705287047807,-2878.01,0.00029041,2]
[311656697,1705287047816,-500.0,0.00029041,2]
[311656698,1705287047825,-236.8989473,0.00029178,2]
[311656699,1705287047834,-153.0,0.00029178,2]
[311656700,1705287047843,-153.890699,0.00029207,2]
[311656701,1705287047852,-1447.87,0.00029213,2]
[311656702,1705287047861,-540.84,0.00029214,2]
[311656703,1705287047870,-596.02,0.00029214,2]
[311656704,1705287047879,-500.0,0.00029214,2]
[311656705,1705287047888,-504.7,0.00029214,2]
[311656706,1705287047898,-500.0,0.00029214,2]
[311656707,1705287047907,-502.4278378,0.0002922,2]
[311656708,1705287047916,-500.0,0.0002922,2]
[311656709,1705287047925,-500.0,0.0002922,2]
[311656710,1705287047934,-501.61315513,0.0002922,2]
[311656711,1705287047943,-500.0,0.0002922,2]
[311656712,1705287047952,-500.0,0.0002922,2]
[311656713,1705287047961,-1814.94,0.0002922,2]
[311656714,1705287047971,-500.0,0.0002922,2]
[311656715,1705287047980,-733.15,0.0002922,2]
[311656716,1705287047989,-217.861042,0.00029314,2]
[311656717,1705287047998,-534.48,0.00029315,2]
[311656718,1705287048008,-1828.62,0.00029315,2]
[311656719,1705287048017,-500.0,0.00029315,2]
[311656720,1705287048026,-528.07,0.00029315,2]
[311656721,1705287048036,-2033.21,0.00029315,2]
[311656722,1705287048045,-500.0,0.00029315,2]
[311656723,1705287048054,-1224.73,0.00029315,2]
[311656724,1705287048063,-500.0,0.00029315,2]
[311656725,1705287048072,-782.52,0.00029315,2]
[311656726,1705287048082,-938.27,0.00029315,2]
[311656727,1705287048091,-500.0,0.00029315,2]
[311656728,1705287048099,-500.0,0.00029315,2]
[311656729,1705287048109,-500.0,0.00029315,2]
[311656730,1705287048118,-589.20604364,0.00029315,2]
[311656731,1705287048127,-500.0,0.00029315,2]
[311656732,1705287048136,-1248.14,0.00029315,2]
[311656733,1705287048145,-500.0,0.00029315,2]
[311656734,1705287048154,-500.0,0.00029315,2]
[311656735,1705287048163,-500.0,0.00029315,2]
[311656736,1705287048172,-574.48,0.00029315,2]
[311656737,1705287048181,-500.0,0.00029315,2]
[311656738,1705287048190,-4486.62,0.00029315,2]
[311656739,1705287048199,-500.0,0.00029315,2]
[311656740,1705287048208,-502.67,0.00029315,2]
[311656741,1705287048217,-500.0,0.00029315,2]
[311656742,1705287048225,-756.73,0.00029315,2]
[311656743,1705287048235,-1008.65,0.00029315,2]
[311656744,1705287048245,-500.0,0.00029315,2]
[311656745,1705287048255,-751.37,0.00029315,2]
[311656746,1705287048264,-500.0,0.00029315,2]
[311656747,1705287048273,-553.59,0.00029315,2]
[311656748,1705287048282,-10237.47,0.00029315,2]
[311656749,1705287048291,-1040.7,0.00029315,2]
[311656750,1705287048300,-905.69,0.00029315,2]
[311656751,1705287048309,-500.0,0.00029315,2]
[311656752,1705287048318,-3647.41,0.00029315,2]
[311656753,1705287048327,-1956.23,0.00029315,2]
[311656754,1705287048336,-872.9,0.00029315,2]
[311656755,1705287048344,-500.0,0.00029315,2]
[311656756,1705287048353,-5498.47,0.00029315,2]
[311656757,1705287048362,-5618.65,0.00029315,2]
[311656758,1705287048371,-500.0,0.00029315,2]
[311656759,1705287048380,-13189.37951919,0.00029315,2]
[311656760,1705287048751,-500.0,0.00027397,2]
[311656761,1705287048761,-316.97354632,0.00028679,2]
[311656762,1705287048770,-1035.21,0.00028767,2]
[311656763,1705287048779,-1035.21,0.00029041,2]
[311656764,1705287048788,-837.383114,0.00029041,2]
[311656765,1705287048797,-153.0,0.00029178,2]
[311656766,1705287048807,-1877.46617238,0.00029315,2]
[311656767,1705287049022,-500.0,0.00027397,2]
[311656768,1705287049031,-500.0,0.00027397,2]
[311656769,1705287049041,-500.0,0.00027397,2]
[311656770,1705287049050,-481.39,0.00027671,2]
[311656771,1705287049059,-2355.57430843,0.00029315,2]
[311656772,1705287049068,-503.29778883,0.00029315,2]
[311656780,1705287266119,387.97450653,0.00021,2]
[311656806,1705288034467,164.1292851,0.00021,2]
[311656855,1705288232840,-155.0,0.000249,4]
[311656856,1705288232850,-150.0,0.00026941,2]
[311656857,1705288232860,-3126.02728391,0.00027394,2]
[311656858,1705288232871,-164.31941956,0.00027395,2]
[311656859,1705288232881,-500.0,0.00027395,2]
[311656860,1705288232891,-668.46648714,0.00027395,2]
[311656861,1705288232901,-261.41368444,0.00027395,2]
[311656862,1705288232911,-1299.26146621,0.00027395,2]
[311656863,1705288232920,-2310.38745859,0.00027395,2]
[311656864,1705288232930,-573.70446246,0.00027395,2]
[311656865,1705288232940,-323.79910425,0.00027395,2]
[311656866,1705288232949,-162.52768205,0.00027395,2]
[311656867,1705288232959,-295.71637171,0.00027395,2]
[311656868,1705288232968,-155.03255684,0.00027395,2]
[311656869,1705288232977,-3162.62992471,0.00027395,2]
[311656870,1705288232987,-204.76594628,0.00027395,2]
[311656871,1705288232997,-468.60119458,0.00027395,2]
[311656872,1705288233006,-426.67394709,0.00027395,2]
[311656873,1705288233016,-2777.08346351,0.00027395,2]
[311656874,1705288233025,-681.58739123,0.00027395,2]
[311656875,1705288233034,-852.52958646,0.00027395,2]
[311656876,1705288233044,-472.73464857,0.00027396,2]
[311656877,1705288233053,-200.0,0.00027397,2]
[311656878,1705288233064,-500.0,0.00027397,2]
[311656879,1705288233072,-500.0,0.00027397,2]
[311656880,1705288233081,-500.0,0.00027397,2]
[311656881,1705288233090,-500.0,0.00027397,2]
[311656882,1705288233099,-500.0,0.00027397,2]
[311656883,1705288233108,-500.0,0.00027397,2]
[311656884,1705288233117,-500.0,0.00027397,2]
[311656885,1705288233125,-500.0,0.00027397,2]
[311656886,1705288233134,-500.0,0.00027397,2]
[311656887,1705288233143,-383.11577033,0.00027397,2]
[311656888,1705288233152,-504.91411394,0.00027397,2]
[311656889,1705288233160,-500.0,0.00027397,2]
[311656890,1705288233169,-281.47680327,0.00027397,2]
[311656891,1705288233178,-500.0,0.00027397,2]
[311656892,1705288233187,-500.0,0.00027397,2]
[311656893,1705288233196,-202.46857956,0.00027397,2]
[311656894,1705288233205,-548.39727857,0.00027397,2]
[311656895,1705288233214,-500.0,0.00027397,2]
[311656896,1705288233223,-313.9541795,0.00027397,2]
[311656897,1705288233234,-500.0,0.00027397,2]
[311656898,1705288233244,-225.46911807,0.00027397,2]
[311656899,1705288233253,-500.0,0.00027397,2]
[311656900,1705288233262,-500.0,0.00027397,2]
[311656901,1705288233271,-500.0,0.00027397,2]
[311656902,1705288233279,-500.0,0.00027397,2]
[311656903,1705288233288,-500.0,0.00027397,2]
[311656904,1705288233297,-500.0,0.00027397,2]
[311656905,1705288233306,-500.0,0.00027397,2]
[311656906,1705288233315,-1909.29,0.00027397,2]
[311656907,1705288233324,-500.0,0.00027397,2]
[311656908,1705288233334,-500.0,0.00027397,2]
[311656909,1705288233343,-500.0,0.00027397,2]
[311656910,1705288233352,-492.96338283,0.00027397,2]
[311656911,1705288233361,-500.0,0.00027397,2]
[311656912,1705288233370,-218.80255492,0.00027397,2]
[311656913,1705288233380,-500.0,0.00027397,2]
[311656914,1705288233389,-500.0,0.00027397,2]
[311656915,1705288233398,-500.0,0.00027397,2]
[311656916,1705288233407,-258.3891157,0.00027397,2]
[311656917,1705288233416,-1122.67,0.00027397,2]
[311656918,1705288233425,-500.0,0.00027397,2]
[311656919,1705288233435,-278.26569893,0.00027397,2]
[311656920,1705288233444,-500.0,0.00027397,2]
[311656921,1705288233453,-465.11184829,0.00027397,2]
[311656922,1705288233462,-500.0,0.00027397,2]
[311656923,1705288233471,-500.0,0.00027397,2]
[311656924,1705288233481,-335.63472498,0.00027397,2]
[311656925,1705288233490,-500.0,0.00027397,2]
[311656926,1705288233500,-501.95209961,0.00027397,2]
[311656927,1705288233509,-500.0,0.00027397,2]
[311656928,1705288233518,-500.0,0.00027397,2]
[311656929,1705288233527,-500.0,0.00027397,2]
[311656930,1705288233537,-500.0,0.00027397,2]
[311656931,1705288233546,-523.08396244,0.00027397,2]
[311656932,1705288233555,-500.0,0.00027397,2]
[311656933,1705288233565,-500.0,0.00027397,2]
[311656934,1705288233574,-500.0,0.00027397,2]
[311656935,1705288233583,-501.08034467,0.00027397,2]
[311656936,1705288233592,-500.0,0.00027397,2]
[311656937,1705288233601,-500.0,0.00027397,2]
[311656938,1705288233610,-500.0,0.00027397,2]
[311656939,1705288233620,-501.02652475,0.00027397,2]
[311656940,1705288233629,-500.0,0.00027397,2]
[311656941,1705288233638,-500.0,0.00027397,2]
[311656942,1705288233647,-163.18093818,0.00027397,2]
[311656943,1705288233661,-749.91,0.00027397,2]
[311656944,1705288233675,-1000.0,0.00027397,2]
[311656945,1705288233689,-500.0,0.00027397,2]
[311656946,1705288233702,-500.0,0.00027397,2]
[311656947,1705288233714,-500.0,0.00027397,2]
[311656948,1705288233725,-500.91038738,0.00027397,2]
[311656949,1705288233738,-619.09681012,0.00027397,2]
[311656950,1705288233751,-497.70383752,0.00027397,2]
[311656951,1705288233764,-500.0,0.00027397,2]
[311656952,1705288233778,-500.0,0.00027397,2]
[311656953,1705288233790,-500.0,0.00027397,2]
[311656954,1705288233804,-500.0,0.00027397,2]
[311656955,1705288233816,-567.53245739,0.00027397,2]
[311656956,1705288233828,-511.99158652,0.00027397,2]
[311656957,1705288233838,-500.0,0.00027397,2]
[311656958,1705288233848,-500.0,0.00027397,2]
[311656959,1705288233861,-500.0,0.00027397,2]
[311656960,1705288233873,-531.48001928,0.00027397,2]
[311656961,1705288233885,-905.81,0.00027397,2]
[311656962,1705288233896,-500.0,0.00027397,2]
[311656963,1705288233907,-500.0,0.00027397,2]
[311656964,1705288233920,-500.0,0.00027397,2]
[311656965,1705288233931,-502.26499882,0.00027397,2]
[311656966,1705288233943,-502.69230495,0.00027397,2]
[311656967,1705288233953,-503.98676531,0.00027397,2]
[311656968,1705288233963,-503.63634839,0.00027397,2]
[311656969,1705288233978,-500.0,0.00027397,2]
[311656970,1705288233989,-227.58827317,0.00027397,2]
[311656971,1705288234000,-500.0,0.00027397,2]
[311656972,1705288234013,-581.91,0.00027397,2]
[311656973,1705288234023,-500.0,0.00027397,2]
[311656974,1705288234035,-500.0,0.00027397,2]
[311656975,1705288234046,-500.0,0.00027397,2]
[311656976,1705288234062,-1247.9,0.00027397,2]
[311656977,1705288234073,-500.0,0.00027397,2]
[311656978,1705288234085,-502.10441126,0.00027397,2]
[311656979,1705288234097,-522.44209673,0.00027397,2]
[311656980,1705288234110,-504.49598516,0.00027397,2]
[311656981,1705288234123,-501.32112108,0.00027397,2]
[311656982,1705288234135,-500.0,0.00027397,2]
[311656983,1705288234148,-500.0,0.00027397,2]
[311656984,1705288234161,-500.0,0.00027397,2]
[311656985,1705288234173,-503.27883976,0.00027397,2]
[311656986,1705288234185,-500.0,0.00027397,2]
[311656987,1705288234196,-500.0,0.00027397,2]
[311656988,1705288234207,-312.25901407,0.00027397,2]
[311656989,1705288234220,-504.48237757,0.00027397,2]
[311656990,1705288234232,-500.0,0.00027397,2]
[311656991,1705288234243,-500.0,0.00027397,2]
[311656992,1705288234256,-500.0,0.00027397,2]
[311656993,1705288234267,-504.355808,0.00027397,2]
[311656994,1705288234278,-500.0,0.00027397,2]
[311656995,1705288234288,-552.84023923,0.00027397,2]
[311656996,1705288234298,-500.0,0.00027397,2]
[311656997,1705288234309,-500.0,0.00027397,2]
[311656998,1705288234320,-500.0,0.00027397,2]
[311656999,1705288234330,-500.60332259,0.00027397,2]
[311657000,1705288234340,-500.0,0.00027397,2]
[311657001,1705288234351,-1387.54,0.00027397,2]
[311657002,1705288234362,-500.0,0.00027397,2]
[311657003,1705288234373,-500.0,0.00027397,2]
[311657004,1705288234384,-504.58019744,0.00027397,2]
[311657005,1705288234395,-500.0,0.00027397,2]
[311657006,1705288234405,-500.0,0.00027397,2]
[311657007,1705288234416,-500.0,0.00027397,2]
[311657008,1705288234428,-500.0,0.00027397,2]
[311657009,1705288234438,-246.18593123,0.00027397,2]
[311657010,1705288234449,-318.01175863,0.00027397,2]
[311657011,1705288234459,-500.0,0.00027397,2]
[311657012,1705288234470,-609.35,0.00027397,2]
[311657013,1705288234480,-660.74,0.00027397,2]
[311657014,1705288234491,-500.0,0.00027397,2]
[311657015,1705288234502,-553.47,0.00027397,2]
[311657016,1705288234513,-859.06,0.00027397,2]
[311657017,1705288234524,-500.0,0.00027397,2]
[311657018,1705288234535,-500.0,0.00027397,2]
[311657019,1705288234545,-504.42523634,0.00027397,2]
[311657020,1705288234556,-500.69934693,0.00027397,2]
[311657021,1705288234566,-500.0,0.00027397,2]
[311657022,1705288234577,-500.0,0.00027397,2]
[311657023,1705288234587,-500.0,0.00027397,2]
[311657024,1705288234598,-527.81872152,0.00027397,2]
[311657025,1705288234609,-500.0,0.00027397,2]
[311657026,1705288234619,-500.0,0.00027397,2]
[311657027,1705288234630,-500.0,0.00027397,2]
[311657028,1705288234640,-427.61481384,0.00027397,2]
[311657029,1705288234651,-320.69145973,0.00027397,2]
[311657030,1705288234661,-500.0,0.00027397,2]
[311657031,1705288234672,-500.0,0.00027397,2]
[311657032,1705288234683,-263.46749869,0.00027397,2]
[311657033,1705288234694,-500.0,0.00027397,2]
[311657034,1705288234704,-531.48250148,0.00027397,2]
[311657035,1705288234715,-517.22036158,0.00027397,2]
[311657036,1705288234725,-500.0,0.00027397,2]
[311657037,1705288234736,-500.0,0.00027397,2]
[311657038,1705288234847,-500.0,0.00027397,2]
[311657039,1705288234860,-189.77430266,0.00027397,2]
[311657070,1705288238125,-310.22569734,0.00027397,2]
[311657071,1705288238135,-500.0,0.00027397,2]
[311657072,1705288238144,-500.0,0.00027397,2]
[311657073,1705288238154,-202.99278543,0.00027397,2]
[311657074,1705288238166,-500.0,0.00027397,2]
[311657075,1705288238175,-500.0,0.00027397,2]
[311657076,1705288238184,-500.0,0.00027397,2]
[311657077,1705288238194,-529.74269443,0.00027397,2]
[311657078,1705288238203,-500.0,0.00027397,2]
[311657079,1705288238212,-500.0,0.00027397,2]
[311657080,1705288238221,-506.77404664,0.00027397,2]
[311657081,1705288238231,-751.3,0.00027397,2]
[311657082,1705288238240,-528.78,0.00027397,2]
[311657083,1705288238253,-500.0,0.00027397,2]
[311657084,1705288238264,-500.0,0.00027397,2]
[311657085,1705288238273,-500.0,0.00027397,2]
[311657086,1705288238284,-500.0,0.00027397,2]
[311657087,1705288238294,-500.0,0.00027397,2]
[311657088,1705288238304,-500.0,0.00027397,2]
[311657089,1705288238312,-500.0,0.00027397,2]
[311657090,1705288238322,-500.0,0.00027397,2]
[311657091,1705288238331,-500.0,0.00027397,2]
[311657092,1705288238340,-356.58383934,0.00027397,2]
[311657093,1705288238350,-500.0,0.00027397,2]
[311657094,1705288238359,-500.0,0.00027397,2]
[311657095,1705288238369,-500.0,0.00027397,2]
[311657096,1705288238378,-500.0,0.00027397,2]
[311657097,1705288238387,-509.18359272,0.00027397,2]
[311657098,1705288238397,-1073.89,0.00027397,2]
[311657099,1705288238406,-502.43224141,0.00027397,2]
[311657100,1705288238416,-500.0,0.00027397,2]
[311657101,1705288238425,-500.0,0.00027397,2]
[311657102,1705288238434,-500.0,0.00027397,2]
[311657103,1705288238444,-500.0,0.00027397,2]
[311657104,1705288238453,-500.0,0.00027397,2]
[311657105,1705288238463,-500.0,0.00027397,2]
[311657106,1705288238473,-500.0,0.00027397,2]
[311657107,1705288238482,-501.71637786,0.00027397,2]
[311657108,1705288238491,-1035.38,0.00027397,2]
[311657109,1705288238501,-500.0,0.00027397,2]
[311657110,1705288238511,-500.94298326,0.00027397,2]
[311657111,1705288238520,-500.0,0.00027397,2]
[311657112,1705288238530,-501.50596896,0.00027397,2]
[311657113,1705288238539,-500.0,0.00027397,2]
[311657114,1705288238549,-500.0,0.00027397,2]
[311657115,1705288238558,-923.13,0.00027397,2]
[311657116,1705288238567,-155.68386071,0.00027397,2]
[311657117,1705288238576,-500.0,0.00027397,2]
[311657118,1705288238586,-500.0,0.00027397,2]
[311657119,1705288238594,-500.0,0.00027397,2]
[311657120,1705288238603,-652.08,0.00027397,2]
[311657121,1705288238612,-500.0,0.00027397,2]
[311657122,1705288238621,-500.0,0.00027397,2]
[311657123,1705288238630,-503.09155982,0.00027397,2]
[311657124,1705288238639,-500.0,0.00027397,2]
[311657125,1705288238649,-500.0,0.00027397,2]